bitfinex/quotes_BTCUSD_20241119
["timestamp","ask_amount","ask_price","bid_price","bid_amount"]
[1732019908885,0.27165977,92346.0,92338.0,0.108297]
[1732019908886,0.108289,92345.0,92338.0,0.108297]
[1732019909111,0.10906255,92346.0,92337.0,0.00226018]
[1732019909318,0.21735055,92346.0,92340.0,0.108294]
[1732019909527,0.10906255,92346.0,92338.0,0.00226074]
[1732019909779,0.108289,92345.0,92333.0,0.0827]
[1732019910000,0.10906255,92346.0,92333.0,0.0827]
[1732019910001,0.10906255,92346.0,92334.0,0.00226121]
[1732019910229,0.16259722,92356.0,92339.0,0.216592]
[1732019910479,0.16259722,92356.0,92340.0,0.00226165]
[1732019910716,0.001,92346.0,92340.0,0.00226165]
[1732019910933,0.001,92346.0,92345.0,0.108289]
[1732019911363,0.15934276,92353.0,92345.0,0.108289]
[1732019911364,0.108281,92353.0,92348.0,0.108285]
[1732019911568,0.108282,92352.0,92347.0,0.108286]
[1732019911782,0.108279,92354.0,92348.0,0.108285]
[1732019911986,0.10828,92353.0,92349.0,0.00226052]
[1732019912199,0.10828,92353.0,92348.0,0.108285]
[1732019912407,0.10828,92353.0,92349.0,0.00226042]
[1732019912644,0.216534,92364.0,92346.0,0.16259722]
[1732019912893,0.01,92365.0,92347.0,0.0022617]
[1732019912894,0.10906255,92363.0,92347.0,0.0022617]
[1732019913155,0.005,92375.0,92350.0,0.005]
[1732019913387,0.16259722,92366.0,92350.0,0.005]
[1732019913602,0.108265,92366.0,92360.0,0.108271]
[1732019913814,0.216524,92369.0,92361.0,0.00223851]
[1732019914052,0.108267,92365.0,92359.0,0.108272]
[1732019914275,0.108267,92364.0,92360.0,0.00223851]
[1732019914531,0.10827,92361.0,92360.0,0.00223851]
[1732019914757,0.10827,92361.0,92340.0,0.005]
[1732019914758,0.108285,92349.0,92340.0,0.005]
[1732019914988,0.017,92353.0,92349.0,0.108284]
[1732019915219,0.108277,92356.0,92350.0,0.00223831]
[1732019915426,0.16259722,92364.0,92350.0,0.00223831]
[1732019915427,0.108282,92352.0,92350.0,0.00223831]
[1732019915655,0.10906255,92352.0,92335.0,0.005]
[1732019915856,0.10906255,92351.0,92339.0,0.16259722]
[1732019916082,0.005,92357.0,92341.0,0.216588]
[1732019916316,0.005,92357.0,92340.0,0.00221804]
[1732019916317,0.108282,92351.0,92344.0,0.10829]
[1732019916545,0.10906255,92356.0,92342.0,0.21880444]
[1732019916751,0.10906255,92356.0,92339.0,0.16259722]
[1732019916752,0.10906255,92356.0,92346.0,0.216576]
[1732019917012,0.10906255,92356.0,92347.0,0.00221785]
[1732019917254,0.221543,92361.0,92344.0,0.216581]
[1732019917255,0.108273,92359.0,92344.0,0.216581]
[1732019917470,0.1,92366.0,92352.0,0.216562]
[1732019917694,0.017,92353.0,92352.0,0.324843]
[1732019918151,0.05267426,92353.0,92352.0,0.216562]
[1732019918781,0.05267426,92353.0,92340.0,0.005]
[1732019918979,0.27165977,92367.0,92356.0,0.108275]
[1732019919187,0.27165977,92367.0,92353.0,0.216559]
[1732019919188,0.005,92365.0,92357.0,0.0024738]
[1732019919400,0.37992377,92367.0,92359.0,0.108272]
[1732019919611,0.21732655,92367.0,92359.0,0.108272]
[1732019919845,0.21732655,92367.0,92360.0,0.00247346]
[1732019920061,0.005,92365.0,92360.0,0.00247346]
[1732019920275,0.005,92365.0,92359.0,0.108272]
[1732019920508,0.10827,92362.0,92360.0,0.00247324]
[1732019920723,0.10827,92361.0,92360.0,0.00247324]
[1732019920950,0.10827,92361.0,92343.0,0.082]
[1732019920951,0.108271,92360.0,92343.0,0.082]
[1732019921187,0.35827305,92361.0,92351.0,0.16259722]
[1732019921188,0.108281,92352.0,92351.0,0.16259722]
[1732019921415,0.16288641,92352.0,92340.0,0.005]
[1732019921644,0.18757242,92361.0,92340.0,0.005]
[1732019921645,0.10906255,92351.0,92340.0,0.005]
[1732019921851,0.008,92361.0,92340.0,0.005]
[1732019922068,0.108277,92356.0,92351.0,0.108281]
[1732019922270,0.10906255,92359.0,92352.0,0.10828]
[1732019922502,0.108275,92357.0,92352.0,0.10828]
[1732019922736,0.108275,92357.0,92340.0,0.005]
[1732019922737,0.10906255,92357.0,92340.0,0.22159]
[1732019922973,0.108278,92355.0,92350.0,0.108283]
[1732019923195,0.0008554,92355.0,92350.0,0.108283]
[1732019923414,0.1091334,92355.0,92340.0,0.005]
[1732019923652,0.0008554,92355.0,92352.0,0.10828]
[1732019924531,0.0028554,92355.0,92352.0,0.10828]
[1732019924968,0.0008554,92355.0,92352.0,0.10828]
[1732019925205,0.0008554,92355.0,92352.0,0.10928]
[1732019925396,0.0038554,92355.0,92353.0,0.108279]
[1732019925896,0.0038554,92355.0,92352.0,0.001]
[1732019926578,0.0038554,92355.0,92352.0,0.109281]
[1732019926774,0.0008554,92355.0,92352.0,0.108281]
[1732019926973,0.0008554,92355.0,92351.0,0.108281]
[1732019927176,0.0028554,92355.0,92351.0,0.108281]
[1732019927634,0.0008554,92355.0,92351.0,0.108281]
[1732019927834,0.0008554,92355.0,92341.0,0.216588]
[1732019928041,0.0018554,92355.0,92351.0,0.001]
[1732019928273,0.0018554,92355.0,92351.0,0.109281]
[1732019928485,0.0018554,92355.0,92354.0,0.108279]
[1732019928755,0.06320685,92355.0,92354.0,0.108279]
[1732019928993,0.17148385,92355.0,92354.0,0.00247131]
[1732019929358,0.17148385,92355.0,92351.0,0.001]
[1732019929359,0.108281,92352.0,92351.0,0.001]
[1732019929570,0.16845639,92352.0,92351.0,0.001]
[1732019929784,0.16845639,92352.0,92351.0,0.00347451]
[1732019930012,0.06017539,92352.0,92351.0,0.108282]
[1732019930464,0.06017539,92352.0,92351.0,0.11075638]
[1732019930712,0.06017539,92354.0,92353.0,0.10828]
[1732019930938,0.0008554,92355.0,92354.0,0.108279]
[1732019931229,0.05882821,92355.0,92354.0,0.108279]
[1732019931647,0.05882821,92355.0,92354.0,0.11074732]
[1732019932572,0.05882821,92355.0,92354.0,0.11574732]
[1732019933715,0.06382821,92355.0,92354.0,0.11674732]
[1732019934151,0.05882821,92355.0,92354.0,0.11574732]
[1732019934364,0.05882821,92355.0,92354.0,0.11874732]
[1732019934577,0.05982821,92355.0,92354.0,0.11874732]
[1732019939366,0.05982821,92355.0,92354.0,0.01046832]
[1732019939597,0.05982821,92355.0,92354.0,0.11874732]
[1732019940238,0.05982821,92355.0,92354.0,0.32780987]
[1732019940459,0.05982821,92355.0,92354.0,0.32980987]
[1732019940708,0.05982821,92355.0,92354.0,0.32780987]
[1732019941600,0.05982821,92355.0,92354.0,0.32980987]
[1732019941823,0.05982821,92355.0,92354.0,0.32780987]
[1732019942544,0.05982821,92355.0,92354.0,0.41020987]
[1732019942749,0.05982821,92355.0,92354.0,0.45329742]
[1732019942963,0.03782829,92355.0,92354.0,0.53449742]
[1732019943192,0.0008548,92374.0,92373.0,0.342056]
[1732019943438,0.0008548,92374.0,92373.0,0.46811562]
[1732019943677,0.05987668,92374.0,92373.0,0.60260728]
[1732019943905,0.05987668,92374.0,92373.0,0.61260728]
[1732019944363,0.05987668,92374.0,92373.0,0.61060728]
[1732019944821,0.05987668,92374.0,92373.0,0.61260728]
[1732019945040,0.0008548,92374.0,92373.0,0.48654766]
[1732019945288,0.0008548,92374.0,92373.0,0.29328511]
[1732019946255,0.0038548,92374.0,92373.0,0.43634766]
[1732019946742,0.0008548,92374.0,92373.0,0.48534766]
[1732019946972,0.0008548,92374.0,92373.0,0.50434766]
[1732019946973,0.0038548,92374.0,92373.0,0.50434766]
[1732019947200,0.0038548,92374.0,92373.0,0.50234766]
[1732019947435,0.0008548,92374.0,92373.0,0.49334766]
[1732019947680,0.05957831,92374.0,92373.0,0.50534766]
[1732019948634,0.05957831,92374.0,92373.0,0.50334766]
[1732019949117,0.05957831,92374.0,92373.0,0.5492049]
[1732019949359,0.05465504,92374.0,92373.0,0.5492049]
[1732019949584,0.16259722,92398.0,92396.0,0.0045]
[1732019949820,0.16259722,92398.0,92397.0,0.112728]
[1732019950053,0.05465504,92398.0,92397.0,0.11510351]
[1732019950935,0.05665504,92398.0,92397.0,0.11510351]
[1732019951155,0.02590061,92398.0,92397.0,0.11510351]
[1732019951827,0.02390061,92398.0,92397.0,0.11510351]
[1732019953234,0.02590061,92398.0,92397.0,0.12460351]
[1732019953723,0.02590061,92398.0,92397.0,0.11060351]
[1732019953938,0.13296316,92398.0,92397.0,0.00237551]
[1732019954150,0.13396316,92398.0,92397.0,0.01337551]
[1732019954622,0.02390061,92398.0,92397.0,0.108228]
[1732019954859,0.02390061,92398.0,92397.0,0.11060351]
[1732019955069,0.02490061,92398.0,92397.0,0.11460351]
[1732019956336,0.02390061,92398.0,92397.0,0.11060351]
[1732019956763,0.02490061,92398.0,92397.0,0.11860351]
[1732019957180,0.02316637,92398.0,92397.0,0.11060351]
[1732019957400,0.02516637,92398.0,92397.0,0.12260351]
[1732019958040,0.02316637,92398.0,92397.0,0.11060351]
[1732019959666,0.02416637,92398.0,92397.0,0.12310351]
[1732019960092,0.02316637,92398.0,92397.0,0.11510351]
[1732019960304,0.02602137,92398.0,92397.0,0.12710351]
[1732019961655,0.02573865,92398.0,92397.0,0.12710351]
[1732019962541,0.02573865,92398.0,92397.0,0.11510351]
[1732019962542,0.02373865,92398.0,92397.0,0.11510351]
[1732019962760,0.02473865,92398.0,92397.0,0.12610351]
[1732019963650,0.02473865,92398.0,92397.0,0.00237551]
[1732019963651,0.2410282,92398.0,92397.0,0.00237551]
[1732019963903,0.2410282,92398.0,92397.0,0.01037551]
[1732019963904,0.3187282,92398.0,92397.0,0.01037551]
[1732019964116,0.3207282,92398.0,92397.0,0.00680291]
[1732019964361,0.108248,92380.0,92372.0,0.108256]
[1732019964573,0.108248,92380.0,92369.0,0.221021]
[1732019964574,0.13113402,92380.0,92369.0,0.221021]
[1732019964789,0.02288602,92380.0,92379.0,0.16480771]
[1732019965015,0.02288602,92380.0,92372.0,0.216513]
[1732019965247,0.02288602,92380.0,92379.0,0.0022131]
[1732019965248,0.108248,92380.0,92379.0,0.0022131]
[1732019965465,0.002,92378.0,92358.0,0.216548]
[1732019965686,0.216506,92376.0,92363.0,0.0045]
[1732019965893,0.108253,92376.0,92370.0,0.108259]
[1732019966128,0.10906255,92377.0,92371.0,0.00221464]
[1732019966357,0.108256,92374.0,92371.0,0.00221464]
[1732019966566,0.216506,92376.0,92363.0,0.0045]
[1732019966791,0.10906255,92377.0,92363.0,0.0045]
[1732019967028,0.10906255,92377.0,92361.0,0.0045]
[1732019967279,0.0494,92381.0,92370.0,0.216518]
[1732019967555,0.0494,92381.0,92367.0,0.16259722]
[1732019967556,0.30728973,92391.0,92367.0,0.16259722]
[1732019967770,0.001,92377.0,92376.0,0.108253]
[1732019968204,0.02331155,92377.0,92376.0,0.108253]
[1732019969304,0.02231155,92377.0,92376.0,0.108253]
[1732019969516,0.02431155,92377.0,92369.0,0.433044]
[1732019969729,0.02431155,92377.0,92368.0,0.078]
[1732019969730,0.02431155,92377.0,92376.0,0.108253]
[1732019970153,0.02231155,92377.0,92376.0,0.108253]
[1732019970378,0.02331155,92377.0,92376.0,0.007]
[1732019970616,0.3179261,92377.0,92376.0,0.007]
[1732019970825,0.3761261,92377.0,92376.0,0.007]
[1732019971753,0.3741261,92377.0,92376.0,0.007]
[1732019971984,0.3641261,92377.0,92376.0,0.007]
[1732019972241,0.2406261,92377.0,92376.0,0.007]
[1732019973117,0.2406261,92377.0,92369.0,0.216521]
[1732019973118,0.02231155,92377.0,92369.0,0.216521]
[1732019973325,0.02231155,92377.0,92370.0,0.00223353]
[1732019973541,0.007,92377.0,92376.0,0.001]
[1732019973757,0.11606255,92377.0,92376.0,0.001]
[1732019974021,0.3897436,92377.0,92376.0,0.00323285]
[1732019974265,0.3897436,92377.0,92367.0,0.0017092]
[1732019974266,0.108262,92368.0,92367.0,0.0017092]
[1732019974484,0.2410536,92368.0,92367.0,0.0017092]
[1732019974717,0.2430536,92368.0,92367.0,0.0017092]
[1732019974925,0.2410536,92368.0,92367.0,0.0017092]
[1732019975198,0.2530536,92368.0,92367.0,0.0017092]
[1732019976069,0.2510536,92368.0,92367.0,0.0017092]
[1732019976281,0.2530536,92368.0,92367.0,0.0017092]
[1732019976508,0.2510536,92368.0,92367.0,0.0017092]
[1732019976718,0.2530536,92368.0,92367.0,0.0017092]
[1732019976936,0.2510536,92368.0,92367.0,0.0017092]
[1732019977401,0.2530536,92368.0,92367.0,0.0017092]
[1732019978142,0.36211615,92368.0,92367.0,0.0017092]
[1732019978386,0.58981615,92368.0,92367.0,0.0017092]
[1732019978617,0.4907536,92368.0,92367.0,0.0017092]
[1732019979075,0.84820778,92368.0,92367.0,0.0017092]
[1732019979309,0.4827536,92368.0,92367.0,0.0017092]
[1732019979522,0.4827536,92368.0,92354.0,0.00171]
[1732019979523,0.118277,92355.0,92354.0,0.00171]
[1732019979732,0.2401725,92355.0,92354.0,0.00171]
[1732019981285,0.2501725,92355.0,92354.0,0.00171]
[1732019981506,0.37623212,92355.0,92354.0,0.00171]
[1732019981970,0.38923212,92355.0,92354.0,0.00171]
[1732019982184,0.54563212,92355.0,92354.0,0.00171]
[1732019982398,0.61213212,92355.0,92354.0,0.00171]
[1732019982614,0.96928343,92355.0,92354.0,0.00171]
[1732019982885,0.99128343,92355.0,92354.0,0.00171]
[1732019983102,0.99128343,92355.0,92352.0,0.0017096]
[1732019983103,0.0155,92353.0,92352.0,0.0017096]
[1732019983326,0.35792175,92353.0,92352.0,0.0017096]
[1732019983538,0.95686731,92353.0,92352.0,0.0017096]
[1732019984233,0.73807306,92353.0,92352.0,0.0017096]
[1732019984469,1.10189523,92353.0,92352.0,6e-07]
[1732019984707,0.97583561,92353.0,92352.0,6e-07]
[1732019985156,1.21740885,92353.0,92352.0,6e-07]
[1732019985385,1.24440885,92353.0,92352.0,6e-07]
[1732019985618,1.00283561,92353.0,92352.0,6e-07]
[1732019986025,1.24439788,92353.0,92352.0,6e-07]
[1732019986261,1.00283561,92353.0,92352.0,6e-07]
[1732019986947,1.24431139,92353.0,92352.0,6e-07]
[1732019987162,1.19592872,92353.0,92352.0,6e-07]
[1732019987384,1.00283561,92353.0,92352.0,6e-07]
[1732019987608,1.19592872,92353.0,92352.0,6e-07]
[1732019987822,0.97983561,92353.0,92352.0,6e-07]
[1732019988285,0.76744894,92353.0,92352.0,6e-07]
[1732019988528,0.6226843,92353.0,92352.0,6e-07]
[1732019989465,0.0155,92341.0,92340.0,0.16259722]
[1732019989688,0.46091617,92341.0,92340.0,0.16259722]
[1732019989810,0.48418929,92341.0,92340.0,0.16489606]
[1732019990042,0.108306,92331.0,92329.0,0.16259722]
[1732019990258,0.10906255,92330.0,92329.0,0.16259722]
[1732019990461,0.13233567,92330.0,92323.0,0.108314]
[1732019990736,0.10906255,92330.0,92325.0,0.37922222]
[1732019990941,0.10906255,92330.0,92327.0,0.216621]
[1732019991142,0.10906255,92330.0,92328.0,0.108309]
[1732019991345,0.16259722,92338.0,92326.0,0.08]
[1732019991556,0.113307,92330.0,92326.0,0.08]
[1732019991776,0.005,92330.0,92326.0,0.08]
[1732019991985,0.005,92330.0,92329.0,0.108308]
[1732019992375,0.02827733,92330.0,92329.0,0.108308]
[1732019992695,0.02327733,92330.0,92329.0,0.108308]
[1732019993407,0.02234582,92330.0,92326.0,0.08]
[1732019993555,0.16259722,92340.0,92336.0,0.1083]
[1732019993745,0.21735855,92339.0,92334.0,0.108301]
[1732019993950,0.21735855,92339.0,92332.0,0.216609]
[1732019993951,0.218595,92338.0,92335.0,0.00232976]
[1732019994220,0.1083,92336.0,92335.0,0.00232976]
[1732019994408,0.02234582,92336.0,92335.0,0.11062976]
[1732019994649,0.02234582,92336.0,92335.0,0.1083]
[1732019994887,0.02234582,92336.0,92335.0,0.11062942]
[1732019995370,0.02234582,92336.0,92335.0,0.00232942]
[1732019995371,0.23970837,92336.0,92335.0,0.00232942]
[1732019995616,0.01,92334.0,92317.0,0.108321]
[1732019995848,0.23436962,92327.0,92326.0,0.16259722]
[1732019996070,0.23436962,92327.0,92311.0,0.0877]
[1732019996071,0.25766965,92327.0,92311.0,0.0877]
[1732019996303,0.108322,92317.0,92312.0,0.108327]
[1732019996515,0.108323,92316.0,92311.0,0.0877]
[1732019996730,0.02254748,92316.0,92312.0,0.108328]
[1732019996971,0.21664,92319.0,92311.0,0.0877]
[1732019996972,0.108321,92319.0,92313.0,0.0045]
[1732019997187,0.108321,92319.0,92315.0,0.108324]
[1732019997188,0.10906255,92319.0,92315.0,0.108324]
[1732019997434,0.10906255,92318.0,92313.0,0.108326]
[1732019997616,0.10906255,92318.0,92311.0,0.0774]
[1732019997832,0.108328,92312.0,92311.0,0.0774]
[1732019998089,0.0232858,92312.0,92311.0,0.185729]
[1732019998345,0.02313923,92312.0,92311.0,0.185729]
[1732019999224,0.001,92312.0,92311.0,0.185729]
[1732019999885,0.02408935,92312.0,92311.0,0.185729]
[1732020000324,0.02408935,92312.0,92311.0,0.190229]
[1732020000553,0.02408935,92312.0,92311.0,0.35689155]
[1732020000783,0.02308935,92312.0,92311.0,0.35689155]
[1732020001020,0.02508935,92312.0,92311.0,0.35689155]
[1732020001725,0.02308935,92312.0,92311.0,0.45689155]
[1732020001967,0.16259722,92329.0,92328.0,0.112809]
[1732020002180,0.18472879,92329.0,92328.0,0.293109]
[1732020002630,0.02213157,92329.0,92328.0,0.293109]
[1732020003100,0.16259722,92340.0,92339.0,0.108296]
[1732020003382,0.16259722,92340.0,92339.0,0.112796]
[1732020003611,0.27165977,92340.0,92333.0,0.0045]
[1732020003847,0.21735855,92339.0,92333.0,0.0045]
[1732020004102,0.108297,92338.0,92334.0,0.108302]
[1732020004329,0.10906255,92339.0,92333.0,0.0045]
[1732020004330,0.21735955,92339.0,92335.0,0.1083]
[1732020004555,0.10906255,92339.0,92332.0,0.216608]
[1732020004783,0.10906255,92339.0,92336.0,0.108299]
[1732020005006,0.10906255,92339.0,92333.0,0.0045]
[1732020005479,0.10906255,92339.0,92314.0,0.21665]
[1732020005480,0.10906255,92339.0,92324.0,0.0045]
[1732020005702,0.10906255,92339.0,92322.0,0.108316]
[1732020005703,0.216595,92338.0,92322.0,0.108316]
[1732020005960,0.10906255,92337.0,92320.0,0.0783]
[1732020006197,0.002,92333.0,92320.0,0.0783]
[1732020006426,0.28865684,92336.0,92320.0,0.108318]
[1732020006427,0.108314,92324.0,92320.0,0.108318]
[1732020006644,0.21737655,92324.0,92320.0,0.108318]
[1732020006860,0.10906255,92324.0,92316.0,0.0045]
[1732020007078,0.108315,92323.0,92319.0,0.108319]
[1732020007316,0.21737655,92324.0,92319.0,0.108319]
[1732020007532,0.216607,92334.0,92318.0,0.37923922]
[1732020007753,0.216607,92334.0,92316.0,0.0045]
[1732020007754,0.16259722,92335.0,92316.0,0.0045]
[1732020007995,0.27165977,92335.0,92316.0,0.0045]
[1732020008225,0.27165977,92335.0,92333.0,0.108302]
[1732020008697,0.10906255,92335.0,92334.0,0.108302]
[1732020008939,0.002,92350.0,92329.0,0.0759]
[1732020009174,0.10906255,92349.0,92344.0,0.108289]
[1732020009388,0.10906255,92349.0,92329.0,0.0804]
[1732020009389,0.108294,92341.0,92331.0,0.108305]
[1732020009602,0.12605962,92345.0,92334.0,0.16259722]
[1732020009603,0.001,92335.0,92334.0,0.16259722]
[1732020009850,0.001,92335.0,92334.0,0.27089922]
[1732020010092,0.001,92335.0,92334.0,0.1104348]
[1732020010338,0.001,92335.0,92334.0,0.1149348]
[1732020010797,0.108284,92350.0,92334.0,0.0066328]
[1732020011044,0.16259722,92345.0,92334.0,0.0066328]
[1732020011278,0.01,92349.0,92348.0,0.108286]
[1732020011506,0.10906255,92352.0,92348.0,0.108286]
[1732020011715,0.10906255,92352.0,92348.0,0.00213234]
[1732020011923,0.21734455,92352.0,92342.0,0.108292]
[1732020012169,0.32562455,92352.0,92340.0,0.108295]
[1732020012394,0.32562455,92352.0,92338.0,0.216593]
[1732020012395,0.108284,92350.0,92343.0,0.00213325]
[1732020012608,0.001,92352.0,92342.0,0.216586]
[1732020012844,0.001,92352.0,92344.0,0.00213291]
[1732020013063,0.001,92352.0,92345.0,0.216579]
[1732020013279,0.001,92352.0,92350.0,0.108283]
[1732020013693,0.001,92352.0,92351.0,0.00213171]
[1732020014120,0.001,92352.0,92347.0,0.108286]
[1732020014327,0.001,92352.0,92274.0,0.28839606]
[1732020014328,0.000855,92353.0,92351.0,0.00213154]
[1732020014541,0.000855,92353.0,92346.0,0.216576]
[1732020014542,0.000855,92353.0,92346.0,0.108287]
[1732020014775,0.002,92352.0,92343.0,0.216583]
[1732020014990,0.002,92352.0,92341.0,0.16259722]
[1732020015213,0.000855,92353.0,92341.0,0.16259722]
[1732020015442,0.001,92352.0,92343.0,0.216583]
[1732020015671,0.001,92352.0,92347.0,0.108287]
[1732020015887,0.000855,92353.0,92347.0,0.108287]
[1732020016368,0.002,92352.0,92348.0,0.108286]
[1732020016812,0.002,92352.0,92345.0,0.216579]
[1732020016813,0.002,92352.0,92349.0,0.108284]
[1732020017255,0.002,92352.0,92349.0,0.108283]
[1732020017498,0.000855,92353.0,92348.0,0.0784]
[1732020017714,0.000855,92353.0,92349.0,0.108284]
[1732020017927,0.001855,92353.0,92348.0,0.0784]
[1732020018612,0.000855,92353.0,92338.0,0.292295]
[1732020018847,0.108285,92349.0,92342.0,0.108292]
[1732020019308,0.108285,92349.0,92339.0,0.216593]
[1732020019523,0.001855,92353.0,92341.0,0.16259722]
[1732020019733,0.001855,92353.0,92338.0,0.0757]
[1732020020182,0.001855,92353.0,92339.0,0.108296]
[1732020020407,0.001855,92353.0,92347.0,0.108286]
[1732020020643,0.001855,92353.0,92348.0,0.108285]
[1732020020850,0.001855,92353.0,92346.0,0.216576]
[1732020021085,0.000855,92353.0,92349.0,0.11038886]
[1732020021298,0.002855,92353.0,92350.0,0.108283]
[1732020021512,0.002855,92353.0,92351.0,0.108282]
[1732020021732,0.000855,92353.0,92351.0,0.108282]
[1732020021951,0.000855,92353.0,92352.0,0.00210766]
[1732020022163,0.001855,92353.0,92352.0,0.00210766]
[1732020022401,0.02754446,92353.0,92352.0,0.11038856]
[1732020022588,0.02654446,92353.0,92352.0,0.11038856]
[1732020022804,0.02654446,92353.0,92352.0,0.19008856]
[1732020023257,0.02709262,92353.0,92352.0,0.19008856]
[1732020023489,0.03009262,92353.0,92352.0,0.19008856]
[1732020024623,0.36200625,92373.0,92352.0,0.19008856]
[1732020024624,0.16259722,92376.0,92375.0,0.108254]
[1732020025109,0.16259722,92376.0,92375.0,0.1103942]
[1732020025110,0.02623762,92376.0,92375.0,0.1103942]
[1732020025759,0.02723762,92376.0,92375.0,0.1103942]
[1732020025977,0.02723762,92376.0,92375.0,0.2432942]
[1732020026223,0.02623762,92376.0,92375.0,0.2432942]
[1732020026646,0.02823762,92376.0,92375.0,0.2432942]
[1732020027103,0.002,92376.0,92375.0,0.2432942]
[1732020028004,0.002,92376.0,92375.0,0.1949942]
[1732020028445,0.0008548,92377.0,92376.0,0.112753]
[1732020028874,0.0008548,92377.0,92376.0,0.11484272]
[1732020029157,0.0008548,92377.0,92376.0,0.00208972]
[1732020029595,0.0028548,92377.0,92376.0,0.00208972]
[1732020030079,0.0008548,92377.0,92376.0,0.11034272]
[1732020030521,0.0028548,92377.0,92376.0,0.11434272]
[1732020031230,0.002,92388.0,92376.0,0.11434272]
[1732020031231,0.000855,92398.0,92390.0,0.0035]
[1732020031472,0.000855,92398.0,92397.0,0.111728]
[1732020031679,0.000855,92398.0,92397.0,0.52935017]
[1732020032101,0.000855,92398.0,92397.0,0.53245261]
[1732020032319,0.0017114,92408.0,92407.0,0.111716]
[1732020032744,0.0017114,92408.0,92407.0,0.11480251]
[1732020033670,0.0047114,92408.0,92407.0,0.11980251]
[1732020034834,0.0017114,92408.0,92407.0,0.11480251]
[1732020035243,0.0037114,92408.0,92407.0,0.12880251]
[1732020036363,0.0037114,92408.0,92407.0,0.43026506]
[1732020037233,0.0008557,92446.0,92439.0,0.111679]
[1732020037445,0.0008557,92446.0,92445.0,0.111672]
[1732020037658,0.0008557,92446.0,92445.0,0.22637197]
[1732020038095,0.0008557,92446.0,92445.0,0.22930846]
[1732020038776,0.0008557,92446.0,92445.0,0.37137101]
[1732020038981,0.0008557,92446.0,92445.0,0.51290997]
[1732020039455,0.009629,92450.0,92449.0,0.1135]
[1732020039680,0.0012554,92469.0,92468.0,0.108145]
[1732020040136,0.0012554,92469.0,92468.0,0.14134497]
[1732020040351,0.0012554,92469.0,92468.0,0.18578831]
[1732020041911,0.0062554,92469.0,92468.0,0.18578831]
[1732020042550,0.0062554,92469.0,92468.0,0.18928831]
[1732020044083,0.0062554,92469.0,92468.0,0.38995086]
[1732020044757,0.0062554,92469.0,92468.0,0.43565086]
[1732020044758,0.0012554,92469.0,92468.0,0.43565086]
[1732020044971,0.0012554,92469.0,92468.0,0.43765086]
[1732020045419,0.0012554,92469.0,92468.0,0.45865086]
[1732020045862,0.0032554,92469.0,92468.0,0.58765086]
[1732020046343,2.41937519,92488.0,92487.0,0.111623]
[1732020046770,2.41937519,92488.0,92487.0,0.11449427]
[1732020047670,2.41937519,92488.0,92487.0,0.18890797]
[1732020048319,2.41437519,92488.0,92487.0,0.18890797]
[1732020048533,2.41437519,92488.0,92487.0,0.14691615]
[1732020048773,2.41437519,92488.0,92487.0,0.14404488]
[1732020049019,2.41437519,92488.0,92487.0,0.14604488]
[1732020049263,2.41437519,92488.0,92487.0,0.14891435]
[1732020049512,2.41437519,92488.0,92487.0,0.19340402]
[1732020049742,2.41437519,92488.0,92487.0,0.23539584]
[1732020050832,2.40437519,92488.0,92487.0,0.14891435]
[1732020051043,2.40437519,92488.0,92487.0,0.113623]
[1732020051680,2.40437519,92488.0,92487.0,0.0055]
[1732020052313,2.40437519,92488.0,92487.0,0.002]
[1732020052529,2.40437519,92488.0,92484.0,0.0035]
[1732020052741,2.40437519,92488.0,92487.0,0.002]
[1732020053390,2.51249719,92488.0,92487.0,0.002]
[1732020053847,2.40437519,92488.0,92487.0,0.002]
[1732020054064,2.40437519,92488.0,92487.0,0.111623]
[1732020054300,2.40937519,92488.0,92487.0,0.0035]
[1732020054575,2.40937519,92488.0,92487.0,0.00621562]
[1732020054802,2.40437519,92488.0,92487.0,0.111623]
[1732020055215,2.40437519,92488.0,92487.0,0.11533756]
[1732020055660,2.40437519,92488.0,92487.0,0.11433756]
[1732020055924,2.40437519,92488.0,92487.0,0.23340011]
[1732020056160,2.40437519,92488.0,92487.0,0.19003756]
[1732020056384,2.40437519,92488.0,92487.0,0.19203756]
[1732020057751,2.40437519,92488.0,92487.0,0.19003756]
[1732020057978,2.40437519,92488.0,92487.0,0.30010011]
[1732020058215,2.40437519,92488.0,92487.0,0.34297141]
[1732020058437,2.40523039,92488.0,92487.0,0.34297141]
[1732020058654,2.40523039,92488.0,92487.0,0.34197141]
[1732020058864,2.40523039,92488.0,92487.0,0.46761622]
[1732020059086,2.40523039,92488.0,92487.0,0.47961622]
[1732020059607,2.40523039,92488.0,92487.0,0.63543453]
[1732020059777,2.40523039,92488.0,92487.0,0.60261622]
[1732020059990,0.0004,92489.0,92488.0,6.83939161]
[1732020060200,0.0004,92489.0,92488.0,6.95845416]
[1732020060403,0.0004,92489.0,92488.0,6.99398408]
[1732020060616,0.0004,92489.0,92488.0,6.98348408]
[1732020061046,0.0004,92489.0,92488.0,6.98448408]
[1732020061255,0.0004,92489.0,92488.0,7.06438408]
[1732020061696,0.00011005,92521.0,92488.0,7.06438408]
[1732020061697,0.23464663,92541.0,92536.0,0.01]
[1732020061909,0.23464663,92541.0,92498.0,0.36342]
[1732020061910,0.16259722,92535.0,92531.0,0.0035]
[1732020062120,0.23664663,92541.0,92523.0,0.0035]
[1732020062342,0.23664663,92541.0,92532.0,0.00269572]
[1732020062555,0.23664663,92541.0,92513.0,0.01]
[1732020062788,0.23664663,92541.0,92514.0,0.216183]
[1732020063021,0.23464663,92541.0,92514.0,0.04243585]
[1732020063236,0.22964663,92541.0,92540.0,0.108061]
[1732020063471,0.22964663,92541.0,92534.0,0.108067]
[1732020063698,0.22964663,92541.0,92522.0,0.01]
[1732020063914,0.22964663,92541.0,92535.0,0.00269605]
[1732020064140,0.22964663,92541.0,92531.0,0.16259722]
[1732020064352,0.22964663,92541.0,92540.0,0.108061]
[1732020064565,0.22964663,92541.0,92531.0,0.27165977]
[1732020064820,0.22964663,92541.0,92540.0,0.11075649]
[1732020065041,0.22964663,92541.0,92538.0,0.108063]
[1732020065286,0.22964663,92541.0,92540.0,0.11075649]
[1732020065539,0.22964663,92541.0,92540.0,0.108061]
[1732020065745,0.24064663,92541.0,92540.0,0.11175615]
[1732020066393,0.24064663,92541.0,92540.0,0.3112187]
[1732020066611,0.24064663,92541.0,92540.0,0.39305642]